bitfinex/quotes_BTCUSD_20260315
["timestamp","ask_amount","ask_price","bid_price","bid_amount"]
[1773542016700,0.11027207,71207.0,71199.0,0.00150714]
[1773542017450,0.07021781,71207.0,71199.0,0.00010714]
[1773542017680,0.04005426,71206.0,71199.0,0.00010714]
[1773542018560,0.07021978,71205.0,71199.0,0.00010714]
[1773542019178,0.07021978,71205.0,71198.0,0.0014]
[1773542019836,0.07021781,71207.0,71198.0,0.0014]
[1773542020034,0.07032495,71207.0,71198.0,0.0014]
[1773542020603,0.00010714,71207.0,71198.0,0.0014]
[1773542020997,0.07021272,71213.0,71198.0,0.07162629]
[1773542021306,0.07021272,71213.0,71199.0,0.0002]
[1773542021441,0.04005426,71212.0,71199.0,0.0002]
[1773542022571,0.04005426,71207.0,71191.0,0.0002]
[1773542022736,0.04005426,71207.0,71192.0,0.0014]
[1773542022737,0.05914737,71201.0,71192.0,0.0014]
[1773542023578,0.05914737,71201.0,71193.0,0.0014]
[1773542024400,0.05914737,71201.0,71191.0,0.0002]
[1773542024607,0.07022471,71200.0,71191.0,0.0002]
[1773542024768,0.07022471,71200.0,71192.0,0.0014]
[1773542024971,0.07022471,71200.0,71193.0,0.0014]
[1773542026387,0.07022471,71200.0,71194.0,0.0014]
[1773542027552,0.04016162,71207.0,71194.0,0.0014]
[1773542028411,0.04016162,71207.0,71185.0,0.07480052]
[1773542028613,0.00022001,71204.0,71186.0,0.07163853]
[1773542029036,0.00022001,71204.0,71187.0,0.01898815]
[1773542029442,0.07022176,71203.0,71188.0,0.07023655]
[1773542030364,0.07022176,71203.0,71189.0,0.0014]
[1773542031797,0.07022176,71203.0,71188.0,0.07023655]
[1773542032089,0.07022176,71203.0,71189.0,0.0014]
[1773542032294,0.11063916,71203.0,71190.0,0.0014]
[1773542033451,0.05914737,71200.0,71191.0,0.0014]
[1773542034262,0.0404174,71198.0,71192.0,0.0014]
[1773542034458,0.0404174,71198.0,71193.0,0.0014]
[1773542034729,0.0404174,71198.0,71194.0,0.0014]
[1773542035033,0.0404174,71198.0,71195.0,0.0014]
[1773542035209,0.0404174,71198.0,71185.0,0.0002]
[1773542035583,0.0404174,71198.0,71186.0,0.0014]
[1773542036292,0.07022767,71197.0,71186.0,0.0014]
[1773542036847,0.07022767,71197.0,71185.0,0.0002]
[1773542037127,0.11064507,71197.0,71187.0,0.0014]
[1773542037344,0.11064507,71197.0,71185.0,0.0002]
[1773542037543,0.11064507,71197.0,71188.0,0.0014]
[1773542037720,0.11064507,71197.0,71185.0,0.0002]
[1773542037721,0.11064507,71197.0,71189.0,0.0014]
[1773542037926,0.11064507,71197.0,71185.0,0.0002]
[1773542038128,0.11064507,71197.0,71186.0,0.0014]
[1773542038329,0.0404174,71195.0,71182.0,0.0100369]
[1773542038514,0.07022767,71197.0,71183.0,0.0014]
[1773542038515,0.0404174,71191.0,71183.0,0.0014]
[1773542038712,0.0404174,71191.0,71184.0,0.0014]
[1773542039330,0.0404174,71191.0,71185.0,0.0014]
[1773542039855,0.0404174,71191.0,71184.0,0.0014]
[1773542040420,0.0404174,71191.0,71179.0,0.0002157]
[1773542040421,0.0404174,71189.0,71183.0,0.0014]
[1773542041434,0.0404174,71189.0,71178.0,0.0014]
[1773542041811,0.0404174,71189.0,71178.0,0.00136]
[1773542042008,0.0414174,71189.0,71178.0,0.00136]
[1773542042279,0.0404174,71189.0,71178.0,0.00136]
[1773542042670,0.0404174,71187.0,71178.0,0.00136]
[1773542044561,0.07023853,71186.0,71178.0,0.00136]
[1773542044993,0.07023063,71194.0,71179.0,0.03554638]
[1773542045147,0.07023063,71194.0,71184.0,0.03554638]
[1773542045352,0.07023063,71194.0,71185.0,0.0014]
[1773542045553,0.001,71187.0,71185.0,0.0014]
[1773542045750,0.07023063,71194.0,71185.0,0.0014]
[1773542046076,0.07023063,71194.0,71185.0,0.03694638]
[1773542046855,0.0702257,71199.0,71185.0,0.03694638]
[1773542047605,0.0702257,71199.0,71186.0,0.0014]
[1773542047810,0.0702257,71199.0,71183.0,0.0002]
[1773542047811,0.1106431,71199.0,71187.0,0.0014]
[1773542048023,0.1106431,71199.0,71179.0,0.04284417]
[1773542048024,0.0404174,71198.0,71188.0,0.0014]
[1773542048153,0.0404174,71198.0,71189.0,0.0014]
[1773542048355,0.0404174,71198.0,71188.0,0.0014]
[1773542048978,0.07022767,71197.0,71188.0,0.0014]
[1773542049408,0.07022767,71197.0,71179.0,0.11308954]
[1773542049609,0.07022767,71197.0,71180.0,0.0014]
[1773542051072,0.07022767,71197.0,71181.0,0.0014]
[1773542051469,0.07022767,71197.0,71179.0,0.07024537]
[1773542051675,0.07022767,71197.0,71182.0,0.0014]
[1773542051906,0.07022767,71197.0,71180.0,0.04284417]
[1773542052109,0.07022767,71197.0,71181.0,0.0014]
[1773542052337,0.0404174,71196.0,71182.0,0.0014]
[1773542052986,0.07022965,71195.0,71182.0,0.0014]
[1773542056706,0.07022965,71195.0,71183.0,0.0014]
[1773542058167,0.07022965,71195.0,71178.0,0.04280397]
[1773542058414,0.07022965,71195.0,71179.0,0.04424417]
[1773542061661,0.07044966,71195.0,71179.0,0.04424417]
[1773542061958,0.07044966,71195.0,71179.0,0.04387187]
[1773542064971,0.07044966,71195.0,71179.0,0.04284417]
[1773542065198,0.07044966,71195.0,71181.0,0.04227488]
[1773542072543,0.07044966,71195.0,71182.0,0.04227488]
[1773542076258,0.06988908,71195.0,71182.0,0.04227488]
[1773542077008,0.06988908,71195.0,71183.0,0.0014]
[1773542078394,0.00022001,71195.0,71183.0,0.0014]
[1773542083228,0.07023063,71194.0,71183.0,0.0014]
[1773542083430,0.07009016,71194.0,71183.0,0.0014]
[1773542083857,0.07009016,71194.0,71183.0,0.04367488]
[1773542084732,0.0002471,71199.0,71183.0,0.04367488]
[1773542084733,0.07043908,71206.0,71188.0,0.04227488]
[1773542084932,0.07043908,71206.0,71193.0,0.04227488]
[1773542084933,0.05326733,71206.0,71193.0,0.04227488]
[1773542085130,0.05326733,71206.0,71195.0,0.04227488]
[1773542085344,0.03609558,71206.0,71197.0,0.03587267]
[1773542085542,0.03609558,71206.0,71198.0,0.13941683]
[1773542085763,0.03609558,71206.0,71196.0,0.07022857]
[1773542085764,0.03609558,71206.0,71199.0,0.13941683]
[1773542085981,0.03609558,71206.0,71200.0,0.14081683]
[1773542086181,0.03609558,71206.0,71201.0,0.13941683]
[1773542086397,0.03609558,71206.0,71202.0,0.13913939]
[1773542086607,0.03609558,71206.0,71200.0,0.0014]
[1773542086825,0.03609558,71206.0,71201.0,0.0014]
[1773542086962,0.03609558,71206.0,71202.0,0.0014]
[1773542087300,0.03609558,71206.0,71203.0,0.0014]
[1773542087456,0.03609558,71206.0,71204.0,0.0014]
[1773542088480,0.03709558,71206.0,71204.0,0.0014]
[1773542088728,0.03809558,71206.0,71204.0,0.0014]
[1773542088968,0.05919815,71203.0,71187.0,0.11131027]
[1773542089114,0.04153902,71202.0,71188.0,0.0014]
[1773542089315,0.07022373,71201.0,71188.0,0.0014]
[1773542089702,0.07022373,71201.0,71188.0,0.07163634]
[1773542090966,0.07022373,71201.0,71188.0,0.07263634]
[1773542091375,0.07022373,71201.0,71188.0,0.07163634]
[1773542091667,0.07022373,71202.0,71188.0,0.07263634]
[1773542091817,0.07022373,71202.0,71188.0,0.07163634]
[1773542092852,0.07022373,71202.0,71188.0,0.0014]
[1773542093049,0.07022373,71202.0,71188.0,0.0024]
[1773542093453,0.07022373,71202.0,71188.0,0.0014]
[1773542093777,0.07022176,71204.0,71188.0,0.0014]
[1773542093979,0.03991106,71203.0,71188.0,0.0014]
[1773542094216,0.00022001,71201.0,71188.0,0.0014]
[1773542095376,0.04013107,71201.0,71188.0,0.0014]
[1773542095907,0.07022471,71200.0,71188.0,0.07163647]
[1773542096104,0.07022471,71200.0,71189.0,0.0014]
[1773542096314,0.07022471,71200.0,71190.0,0.0014]
[1773542101670,0.02147716,71201.0,71190.0,0.07183455]
[1773542101879,0.07022471,71200.0,71190.0,0.07183455]
[1773542102426,0.07022471,71200.0,71191.0,0.13898745]
[1773542102754,0.07022471,71200.0,71192.0,0.13898745]
[1773542102957,0.07022471,71202.0,71193.0,0.13898745]
[1773542103156,0.07022471,71202.0,71194.0,0.13898745]
[1773542103357,0.07022471,71202.0,71195.0,0.13898745]
[1773542103622,0.11013577,71202.0,71196.0,0.0014]
[1773542107721,0.07022471,71202.0,71196.0,0.0014]
[1773542110341,0.07022176,71203.0,71196.0,0.0014]
[1773542111151,0.00022001,71202.0,71196.0,0.0014]
[1773542112312,0.00022001,71202.0,71197.0,0.13919048]
[1773542112313,0.07022373,71201.0,71197.0,0.13919048]
[1773542112508,0.07022373,71201.0,71196.0,0.0014]
[1773542112837,0.07022373,71201.0,71197.0,0.13919055]
[1773542113031,0.07022373,71201.0,71196.0,0.0014]
[1773542113209,0.07022373,71201.0,71197.0,0.13919055]
[1773542113550,0.07022373,71201.0,71196.0,0.0014]
[1773542113551,0.07022373,71201.0,71198.0,0.13919055]
[1773542113856,0.07022373,71201.0,71196.0,0.0014]
[1773542114068,0.07022373,71201.0,71197.0,0.13924606]
[1773542114229,0.07022373,71201.0,71198.0,0.13924606]
[1773542114424,0.07022373,71201.0,71199.0,0.13924606]
[1773542114650,0.07022373,71201.0,71196.0,0.0014]
[1773542114855,0.07022373,71201.0,71197.0,0.13934519]
[1773542115014,0.07022373,71201.0,71198.0,0.13934519]
[1773542115217,0.07022373,71201.0,71199.0,0.13934519]
[1773542115430,0.07022373,71201.0,71196.0,0.0014]
[1773542115617,0.07022373,71201.0,71197.0,0.13934509]
[1773542115880,0.07022373,71201.0,71198.0,0.13934509]
[1773542116046,0.07022373,71201.0,71199.0,0.13934509]
[1773542116243,0.07022373,71201.0,71200.0,0.13934509]
[1773542116423,0.07122373,71201.0,71200.0,0.13934509]
[1773542116659,0.07022373,71201.0,71200.0,0.13934509]
[1773542116900,0.07122373,71201.0,71200.0,0.13934509]
[1773542117258,0.07122373,71201.0,71196.0,0.0014]
[1773542118092,0.07022373,71201.0,71196.0,0.0014]
[1773542118305,0.07122373,71201.0,71196.0,0.0014]
[1773542118464,0.07222373,71201.0,71196.0,0.0014]
[1773542118668,0.07022373,71201.0,71196.0,0.0014]
[1773542119066,0.07044374,71201.0,71196.0,0.0014]
[1773542119995,0.07044374,71201.0,71197.0,0.0014]
[1773542127896,0.07044374,71201.0,71191.0,0.07043357]
[1773542128097,0.07044374,71201.0,71197.0,0.0014]
[1773542131602,0.07044374,71201.0,71191.0,0.07043319]
[1773542131767,0.07044374,71201.0,71196.0,0.0014]
[1773542136963,0.04214096,71200.0,71183.0,0.0003458]
[1773542137364,0.04214096,71200.0,71184.0,0.0014]
[1773542138828,0.0702257,71199.0,71184.0,0.0014]
[1773542139024,0.0702257,71199.0,71182.0,0.0002]
[1773542139025,0.04214096,71198.0,71182.0,0.0014]
[1773542139235,0.04214096,71198.0,71183.0,0.0014]
[1773542139701,0.04214096,71198.0,71179.0,0.0002]
[1773542139870,0.04214096,71198.0,71184.0,0.0014]
[1773542140071,0.04214096,71198.0,71181.0,0.0014]
[1773542140273,0.04214096,71198.0,71182.0,0.0014]
[1773542140489,0.0702257,71199.0,71183.0,0.0014]
[1773542140490,0.05917853,71192.0,71183.0,0.0014]
[1773542140683,0.05917853,71192.0,71184.0,0.0014]
[1773542141093,0.07023359,71191.0,71179.0,0.0002]
[1773542141297,0.07023359,71191.0,71180.0,0.0014]
[1773542141494,0.07023359,71191.0,71181.0,0.0014]
[1773542142021,0.07023359,71191.0,71179.0,0.0002]
[1773542142385,0.07023359,71191.0,71180.0,0.0014]
[1773542142782,0.07023359,71191.0,71179.0,0.0002]
[1773542142783,0.07023359,71191.0,71181.0,0.0014]
[1773542143000,0.07023359,71191.0,71179.0,0.0002]
[1773542143213,0.07023359,71191.0,71180.0,0.0014]
[1773542143601,0.07023359,71191.0,71181.0,0.0014]
[1773542144357,0.07023359,71191.0,71179.0,0.0002]
[1773542144513,0.07023359,71191.0,71182.0,0.0014]
[1773542145134,0.07023359,71191.0,71179.0,0.0002]
[1773542145336,0.07023359,71191.0,71183.0,0.0014]
[1773542145554,0.07023359,71191.0,71179.0,0.0002]
[1773542145768,0.07023359,71191.0,71184.0,0.0014]
[1773542146347,0.07023359,71191.0,71177.0,0.0014]
[1773542146348,0.04214096,71190.0,71177.0,0.0014]
[1773542146663,0.04214096,71190.0,71175.0,0.0001458]
[1773542146664,0.04214096,71186.0,71176.0,0.0014]
[1773542147269,0.04214096,71186.0,71175.0,0.0015458]
[1773542147270,0.11238047,71185.0,71175.0,0.0015458]
[1773542148128,0.07023951,71185.0,71171.0,0.0002]
[1773542148272,0.07023951,71185.0,71167.0,0.0001458]
[1773542148273,0.04214096,71179.0,71168.0,0.0014]
[1773542148473,0.04214096,71179.0,71168.0,0.00175804]
[1773542148671,0.04214096,71179.0,71168.0,0.00035804]
[1773542148874,0.04214096,71179.0,71160.0,0.07026411]
[1773542148875,0.04245956,71179.0,71160.0,0.07026411]
[1773542149196,0.05917853,71174.0,71165.0,0.0014]
[1773542149350,0.05917853,71174.0,71160.0,0.07026411]
[1773542149351,0.07025135,71173.0,71160.0,0.07026411]
[1773542149551,0.03826713,71172.0,71160.0,0.07026411]
[1773542149757,0.07025135,71173.0,71165.0,0.0014]
[1773542150585,0.07038875,71173.0,71165.0,0.0014]
[1773542151816,0.0001374,71173.0,71165.0,0.0014]
[1773542155810,0.0001374,71173.0,71161.0,0.07046269]
[1773542156008,0.0001374,71173.0,71161.0,0.07186269]
[1773542156216,0.0001374,71173.0,71165.0,0.0002]
[1773542160478,0.0001812,71189.0,71165.0,0.07045913]
[1773542160675,0.03862001,71201.0,71171.0,0.03642954]
[1773542160676,0.07180761,71199.0,71171.0,0.03642954]
[1773542160854,0.07040761,71199.0,71173.0,0.03642954]
[1773542161662,0.07022641,71199.0,71173.0,0.03642954]
[1773542162273,0.0702257,71200.0,71173.0,0.03642954]
[1773542162472,0.0702257,71200.0,71182.0,0.07024247]
[1773542162737,0.0702257,71200.0,71183.0,0.03782954]
[1773542163475,0.00022001,71199.0,71183.0,0.03782954]
[1773542164507,0.07022669,71198.0,71185.0,0.03642954]
[1773542164716,0.00035117,71189.0,71185.0,0.03642954]
[1773542167079,0.00035117,71189.0,71186.0,0.07023853]
[1773542167233,0.00035117,71189.0,71187.0,0.03642954]
[1773542169398,0.00035117,71189.0,71188.0,0.07023655]
[1773542169607,0.00035117,71189.0,71185.0,0.07023853]
[1773542169799,0.00035117,71189.0,71187.0,0.0014]
[1773542171414,0.00035117,71189.0,71188.0,0.07023655]
[1773542176783,0.07022784,71197.0,71188.0,0.07023655]
[1773542177609,0.00022001,71202.0,71189.0,0.03642954]
[1773542178150,0.00057109,71207.0,71189.0,0.03642954]
[1773542178353,0.00032737,71206.0,71189.0,0.03642954]
[1773542178784,0.07054628,71206.0,71190.0,0.07023458]
[1773542178981,0.07054628,71206.0,71191.0,0.03642954]
[1773542181085,0.0704359,71209.0,71191.0,0.03642954]
[1773542181086,0.00022001,71209.0,71193.0,0.02489379]
[1773542181316,0.00022001,71211.0,71194.0,0.03782954]
[1773542181631,0.0704293,71216.0,71194.0,0.03782954]
[1773542181988,0.00022001,71216.0,71201.0,0.03683537]
[1773542182186,0.00022001,71216.0,71203.0,0.03683537]
[1773542182379,0.07042902,71216.0,71204.0,0.03823537]
[1773542183271,0.00022001,71216.0,71205.0,0.07021978]
[1773542183554,0.07020998,71215.0,71205.0,0.07021978]
[1773542184441,0.00022001,71206.0,71205.0,0.07021978]
[1773542185158,0.07020998,71215.0,71205.0,0.07021978]
[1773542186492,0.07042904,71216.0,71205.0,0.10705515]
[1773542186658,0.0702101,71215.0,71205.0,0.10705515]
[1773542187614,0.00022001,71216.0,71205.0,0.10705515]
[1773542187967,0.07042909,71216.0,71206.0,0.0014]
[1773542189288,0.00022001,71216.0,71207.0,0.07021781]
[1773542189938,0.07042937,71216.0,71207.0,0.07021781]
[1773542192954,0.00022001,71222.0,71208.0,0.03683537]
[1773542193327,0.0702012,71224.0,71209.0,0.07021584]
[1773542193493,0.0702012,71224.0,71210.0,0.03683537]
[1773542195841,0.0702012,71224.0,71212.0,0.03683537]
[1773542196023,0.0702012,71224.0,71213.0,0.0014]
[1773542196464,0.0002864,71226.0,71213.0,0.0014]
[1773542196645,0.0002864,71226.0,71214.0,0.03410918]
[1773542197365,0.07048557,71226.0,71214.0,0.03410918]
[1773542197923,0.07048557,71226.0,71215.0,0.1043191]
[1773542198474,0.00022001,71224.0,71215.0,0.07020992]
[1773542208453,0.07042146,71224.0,71212.0,0.07021273]
[1773542208656,0.0365009,71223.0,71213.0,0.0014]
[1773542209288,0.0365009,71223.0,71214.0,0.0014]
[1773542209714,0.0365009,71223.0,71210.0,0.07021445]
[1773542209921,0.0365009,71223.0,71215.0,0.0014]
[1773542210245,0.07042146,71224.0,71216.0,0.07020894]
[1773542211916,0.07042146,71224.0,71215.0,0.07160969]
[1773542212292,0.03604109,71223.0,71215.0,0.0014]
[1773542213087,0.05832171,71219.0,71199.0,0.0002]
[1773542213307,0.03604109,71209.0,71195.0,0.07022907]
[1773542213515,0.03604109,71209.0,71196.0,0.0014]
[1773542213706,0.03604109,71209.0,71195.0,0.07033643]
[1773542214443,0.03604109,71207.0,71196.0,0.0014]
[1773542214676,0.03604109,71207.0,71197.0,0.0014]
[1773542217341,0.10625989,71206.0,71197.0,0.0014]
[1773542218399,0.10590889,71206.0,71197.0,0.0014]
[1773542218587,0.10590889,71206.0,71197.0,0.0016]
[1773542219541,0.03604109,71205.0,71197.0,0.0016]
[1773542220150,0.03604109,71205.0,71198.0,0.0014]
[1773542221399,0.07022077,71204.0,71198.0,0.0024]
[1773542221600,0.07022077,71204.0,71199.0,0.0014]
[1773542221794,0.10626186,71204.0,71199.0,0.0014]
[1773542222516,0.10626186,71204.0,71200.0,0.13916006]
[1773542222717,0.10626186,71204.0,71199.0,0.0014]
[1773542222921,0.10626186,71204.0,71200.0,0.13915988]
[1773542223118,0.10626186,71204.0,71199.0,0.0014]
[1773542223320,0.10626186,71204.0,71200.0,0.13915971]
[1773542223497,0.10626186,71204.0,71199.0,0.0014]
[1773542223719,0.10626186,71204.0,71200.0,0.13913992]
[1773542224031,0.10626186,71204.0,71199.0,0.0014]
[1773542224210,0.10626186,71204.0,71200.0,0.13913957]
[1773542224411,0.10626186,71204.0,71199.0,0.0014]
[1773542224606,0.10626186,71204.0,71200.0,0.13916161]
[1773542224810,0.03604109,71204.0,71199.0,0.0014]
[1773542225007,0.07022176,71203.0,71200.0,0.13916362]
[1773542225195,0.07022176,71203.0,71199.0,0.0014]
[1773542225530,0.07022176,71203.0,71200.0,0.13915148]
[1773542225834,0.07022176,71203.0,71199.0,0.0014]
[1773542225987,0.07022176,71203.0,71200.0,0.13914891]
[1773542226185,0.07022176,71203.0,71199.0,0.0016]
[1773542226396,0.07022176,71203.0,71200.0,0.13913924]
[1773542226607,0.07022176,71203.0,71199.0,0.0016]
[1773542226802,0.07022176,71203.0,71200.0,0.1391459]
[1773542227043,0.07022176,71203.0,71199.0,0.0016]
[1773542227269,0.07022176,71203.0,71200.0,0.13914634]
[1773542227447,0.07022176,71203.0,71199.0,0.0016]
[1773542227646,0.07022176,71203.0,71200.0,0.14014483]
[1773542227862,0.07022176,71203.0,71200.0,0.001]
[1773542229012,0.07022176,71203.0,71200.0,0.002]
[1773542229313,0.07022176,71203.0,71200.0,0.001]
[1773542230330,0.07022176,71203.0,71199.0,0.0016]
[1773542230530,0.07022176,71203.0,71200.0,0.13915819]
[1773542230729,0.07022176,71203.0,71199.0,0.0016]
[1773542231082,0.03604109,71208.0,71200.0,0.13915832]
[1773542231308,0.03604109,71208.0,71199.0,0.0016]
[1773542231517,0.03604109,71208.0,71200.0,0.13916815]
[1773542231818,0.03604109,71208.0,71200.0,0.0014]
[1773542232503,0.07021584,71209.0,71201.0,0.13918159]
[1773542232646,0.07021584,71209.0,71200.0,0.0014]
[1773542232846,0.07021584,71209.0,71201.0,0.1391813]
[1773542233054,0.00022001,71204.0,71200.0,0.0014]
[1773542233293,0.00022001,71204.0,71201.0,0.13918165]
[1773542233493,0.00022001,71204.0,71200.0,0.0014]
[1773542233713,0.00022001,71204.0,71201.0,0.13919905]
[1773542233938,0.00022001,71204.0,71200.0,0.0014]
[1773542234092,0.00022001,71204.0,71201.0,0.13919887]
[1773542234299,0.00022001,71204.0,71200.0,0.0014]
[1773542234522,0.00022001,71204.0,71201.0,0.13922882]
[1773542234697,0.00022001,71204.0,71200.0,0.0014]
[1773542234910,0.00022001,71204.0,71201.0,0.13923467]
[1773542235227,0.07022176,71203.0,71200.0,0.0014]
[1773542235430,0.07022176,71203.0,71201.0,0.13927425]
[1773542235734,0.07022176,71203.0,71202.0,0.13927425]
[1773542236091,0.00022001,71204.0,71202.0,0.13927425]
[1773542236294,0.00022001,71204.0,71200.0,0.0014]
[1773542236494,0.00022001,71204.0,71201.0,0.1393054]
[1773542236698,0.00022001,71204.0,71202.0,0.1393054]
[1773542236898,0.00022001,71204.0,71200.0,0.0014]
[1773542237233,0.00022001,71204.0,71201.0,0.13930583]
[1773542237432,0.00022001,71204.0,71202.0,0.13930583]
[1773542237633,0.00022001,71204.0,71203.0,0.13930583]
[1773542241280,0.07021491,71210.0,71203.0,0.13930583]
[1773542241566,0.07021491,71210.0,71204.0,0.0932815]
[1773542241765,0.07021491,71210.0,71200.0,0.0014]
[1773542242480,0.00022001,71204.0,71200.0,0.0014]
[1773542242769,0.00022001,71204.0,71200.0,0.07162467]
[1773542242952,0.07021491,71210.0,71200.0,0.07162467]
[1773542243362,0.07021491,71210.0,71200.0,0.18301704]
[1773542243750,0.07021491,71210.0,71200.0,0.11279237]
[1773542244693,0.07021491,71210.0,71200.0,0.18301692]
[1773542244829,0.00022001,71212.0,71200.0,0.18301692]
[1773542245042,0.07035112,71216.0,71203.0,0.11139237]
[1773542245411,0.07035112,71216.0,71200.0,0.07162455]
[1773542245412,0.0001418,71216.0,71206.0,0.18161092]
[1773542245615,0.0001418,71216.0,71207.0,0.0014]
[1773542248528,0.0001418,71216.0,71207.0,0.07161773]
[1773542249334,0.00022001,71212.0,71207.0,0.07161773]
[1773542251711,4.163e-05,71212.0,71207.0,0.07161773]
[1773542253456,4.163e-05,71212.0,71208.0,0.13949319]
[1773542253643,4.163e-05,71212.0,71209.0,0.13949319]
[1773542253856,4.163e-05,71212.0,71210.0,0.13949319]
[1773542254061,4.163e-05,71212.0,71211.0,0.13949319]
[1773542258930,4.163e-05,71212.0,71211.0,0.11278533]
[1773542263850,0.0001418,71216.0,71211.0,0.11278533]
[1773542264062,0.0001418,71216.0,71208.0,0.07021672]
[1773542266428,0.0001418,71216.0,71207.0,0.0014]
[1773542269045,0.0001418,71216.0,71207.0,0.0016]
[1773542269269,0.00036181,71216.0,71207.0,0.0016]
[1773542270979,0.00036181,71216.0,71208.0,0.13958262]
[1773542271211,0.07020992,71215.0,71209.0,0.13958262]
[1773542271522,0.07020992,71215.0,71210.0,0.13958262]
[1773542271721,0.07020992,71215.0,71211.0,0.13958262]
[1773542271918,0.07020992,71215.0,71212.0,0.13958262]
[1773542272072,0.07020992,71215.0,71213.0,0.13958262]
[1773542272268,0.07020992,71215.0,71207.0,0.0016]
[1773542274642,0.1033808,71215.0,71208.0,0.0014]
[1773542274924,0.07057173,71216.0,71208.0,0.0014]
[1773542274925,0.07020894,71216.0,71208.0,0.0014]
[1773542276603,0.07020894,71217.0,71208.0,0.0014]
[1773542276988,0.00022001,71216.0,71208.0,0.0014]
[1773542278061,0.00022001,71216.0,71207.0,0.0002]
[1773542278265,0.00022001,71216.0,71209.0,0.0014]
[1773542279457,0.07020992,71215.0,71209.0,0.0014]
[1773542280071,0.07020992,71215.0,71207.0,0.07041761]
[1773542280275,0.07020992,71215.0,71210.0,0.0014]
[1773542280808,0.00022001,71227.0,71210.0,0.0014]
[1773542280954,0.00022001,71227.0,71211.0,0.03352777]
[1773542281567,0.00022001,71227.0,71212.0,0.07021288]
[1773542281768,0.00022001,71227.0,71213.0,0.03352777]
[1773542282440,0.07019232,71233.0,71212.0,0.07021288]
[1773542282441,0.0014,71245.0,71217.0,0.03352777]
[1773542282638,0.0014,71245.0,71212.0,0.07021288]
[1773542282639,0.06284809,71248.0,71231.0,0.03352777]
[1773542282846,0.07017659,71249.0,71232.0,0.0014]
[1773542283047,0.07017659,71249.0,71233.0,0.03352777]
[1773542283268,0.03317088,71250.0,71233.0,0.03352777]
[1773542283269,0.10334676,71250.0,71233.0,0.03352777]
[1773542283831,0.1034542,71250.0,71234.0,0.0701912]
[1773542284026,0.00022001,71248.0,71234.0,0.0701912]
[1773542284998,0.00022001,71248.0,71234.0,0.0703466]
[1773542285349,0.00022001,71248.0,71235.0,0.1391218]
[1773542285499,0.00022001,71248.0,71236.0,0.1391218]
[1773542285687,0.07017839,71247.0,71238.0,0.07018725]
[1773542285891,0.07017839,71247.0,71239.0,0.0014]
[1773542286939,0.07017839,71247.0,71239.0,0.00111017]
[1773542288325,0.07017839,71247.0,71239.0,0.07129622]
[1773542288707,0.07017839,71247.0,71240.0,0.0014]
[1773542292019,0.07039767,71248.0,71240.0,0.07158504]
[1773542292657,0.07039767,71248.0,71240.0,0.07143665]
[1773542293054,0.07039767,71248.0,71240.0,0.07128824]
[1773542300209,0.07039767,71248.0,71240.0,0.0011032]
[1773542301444,0.07039767,71248.0,71240.0,0.07128848]
[1773542305290,0.07039767,71248.0,71240.0,0.07148848]
[1773542306359,0.07039765,71248.0,71240.0,0.07148848]
[1773542306745,0.07028484,71250.0,71240.0,0.07148848]
[1773542306949,0.07017338,71253.0,71241.0,0.13873576]
[1773542307155,0.07053129,71253.0,71242.0,0.17262989]
[1773542307388,0.07053129,71253.0,71243.0,0.13872544]
[1773542307886,0.07053129,71253.0,71244.0,0.13872544]
[1773542308094,0.07053129,71253.0,71245.0,0.13872544]
[1773542308247,0.07053129,71253.0,71246.0,0.14012544]
[1773542308446,0.07053129,71253.0,71247.0,0.13872544]
[1773542308693,0.07053129,71253.0,71246.0,0.07157937]
[1773542308927,0.07053129,71253.0,71246.0,0.0014]
[1773542309328,0.07053129,71253.0,71247.0,0.13890969]
[1773542309622,0.07032199,71254.0,71248.0,0.13890969]
[1773542309623,0.00015,71254.0,71248.0,0.13890969]
[1773542309837,0.00015,71254.0,71246.0,0.07157883]
[1773542309984,0.00015,71254.0,71247.0,0.1389068]
[1773542310186,0.00015,71254.0,71248.0,0.1389068]
[1773542310393,0.00015,71254.0,71246.0,0.07157883]
[1773542310608,0.00015,71254.0,71247.0,0.13889568]
[1773542310807,0.00015,71254.0,71246.0,0.07157883]
[1773542310808,0.00015,71254.0,71248.0,0.13889568]
[1773542311015,0.00015,71254.0,71249.0,0.13896495]
[1773542311211,0.00015,71254.0,71246.0,0.07157883]
[1773542311393,0.07038959,71256.0,71247.0,0.1389534]
[1773542311601,0.07038959,71256.0,71248.0,0.1389534]
[1773542311796,0.07038959,71256.0,71249.0,0.1389534]
[1773542312101,0.07038959,71256.0,71246.0,0.07157883]
[1773542312305,0.07038959,71256.0,71247.0,0.13903328]
[1773542312656,0.00022001,71253.0,71248.0,0.20921068]
[1773542312851,0.00022001,71253.0,71249.0,0.13903328]
[1773542313042,0.00022001,71253.0,71250.0,0.13903328]
[1773542313194,0.00022001,71253.0,71251.0,0.13903328]
[1773542313391,0.00022001,71253.0,71252.0,0.14043328]
[1773542315269,0.00022001,71253.0,71252.0,0.14143328]
[1773542315567,0.00022001,71253.0,71251.0,0.02071936]
[1773542315730,0.00022001,71253.0,71252.0,0.0014]
[1773542316065,0.00022001,71253.0,71252.0,0.0024]
[1773542316565,0.00022001,71253.0,71252.0,0.0014]
[1773542318856,0.00022001,71256.0,71253.0,0.07017248]
[1773542319057,0.0114425,71270.0,71253.0,0.07017248]
[1773542319058,0.07015695,71269.0,71253.0,0.07017248]
[1773542319251,0.0815988,71270.0,71253.0,0.07017248]
[1773542319252,0.08159909,71270.0,71254.0,0.03390445]
[1773542319461,0.0114425,71270.0,71254.0,0.03390445]
[1773542319639,0.08159838,71270.0,71254.0,0.03390445]
[1773542319835,0.08159838,71270.0,71256.0,0.03390445]
[1773542320068,0.07969592,71297.0,71256.0,0.03390445]
[1773542320069,0.03703036,71283.0,71261.0,0.03390445]
[1773542320267,0.03703036,71283.0,71263.0,0.03390445]
[1773542320268,0.05340808,71280.0,71263.0,0.03390445]
[1773542320592,0.05340808,71280.0,71263.0,0.03401176]
[1773542321250,0.03703036,71277.0,71263.0,0.00010731]
[1773542321508,0.03703036,71277.0,71264.0,0.0014]
[1773542322001,0.00022001,71269.0,71265.0,0.07156066]
[1773542322210,0.00022001,71269.0,71265.0,0.07016066]
[1773542322412,0.00022001,71269.0,71266.0,0.0014]
[1773542323068,0.00022001,71269.0,71267.0,0.0014]
[1773542323402,0.00022001,71269.0,71265.0,0.07016066]
[1773542323615,0.00022001,71269.0,71268.0,0.0014]
[1773542331237,0.00022001,71269.0,71263.0,0.00010731]
[1773542331382,0.00022001,71269.0,71268.0,0.0014]
[1773542333323,0.07014602,71280.0,71268.0,0.0014]
[1773542333324,0.03713301,71290.0,71269.0,0.07015673]
[1773542333527,0.07013704,71291.0,71263.0,0.00010731]
[1773542333528,0.04045654,71279.0,71263.0,0.00010731]